bitfinex/quotes_BTCUSD_20250330
["timestamp","ask_amount","ask_price","bid_price","bid_amount"]
[1743334827091,0.00038462,83199.0,83191.0,0.19998483]
[1743334827292,0.00038462,83199.0,83191.0,0.21313464]
[1743334827539,0.00038462,83199.0,83192.0,0.06291757]
[1743334827932,0.00038462,83199.0,83193.0,0.01313888]
[1743334828312,0.00038462,83199.0,83191.0,0.19998483]
[1743334828721,0.00038462,83199.0,83192.0,0.01314434]
[1743334831211,0.00038462,83199.0,83193.0,0.98352105]
[1743334831413,0.00038462,83199.0,83193.0,1.00290904]
[1743334831673,0.00038462,83199.0,83194.0,0.13548]
[1743334832052,0.00038462,83199.0,83195.0,0.01937692]
[1743334833688,0.00038462,83199.0,83196.0,0.0477]
[1743334833890,0.00038462,83199.0,83196.0,0.06707138]
[1743334834471,0.00038462,83199.0,83197.0,0.61102588]
[1743334834673,0.00038462,83199.0,83197.0,0.63039172]
[1743334835180,0.00038462,83199.0,83197.0,0.75067655]
[1743334836202,0.00038462,83199.0,83197.0,0.75267655]
[1743334836597,0.00038462,83199.0,83197.0,0.75067655]
[1743334836820,0.00038462,83199.0,83197.0,0.63039172]
[1743334837590,0.00038462,83199.0,83197.0,0.63239172]
[1743334837872,0.00038462,83199.0,83197.0,0.63039172]
[1743334838118,0.00038462,83199.0,83198.0,0.01954085]
[1743334838314,0.00038462,83199.0,83198.0,0.15918599]
[1743334839479,0.00038462,83199.0,83198.0,0.16218599]
[1743334839682,0.00038462,83199.0,83198.0,0.15918599]
[1743334840087,0.0003374,83212.0,83202.0,0.01954085]
[1743334840293,0.00038461,83212.0,83203.0,0.53094126]
[1743334840494,0.00038461,83212.0,83204.0,0.05583016]
[1743334840692,0.28107652,83207.0,83205.0,0.12028483]
[1743334840889,0.28107652,83207.0,83205.0,0.13960639]
[1743334843010,0.28107652,83207.0,83205.0,0.15252341]
[1743334843980,0.28107652,83207.0,83205.0,0.02032156]
[1743334844595,0.28107652,83207.0,83206.0,0.13544]
[1743334844998,0.28107652,83207.0,83206.0,0.15475602]
[1743334845899,0.28107652,83207.0,83206.0,0.72715602]
[1743334846046,0.28107652,83207.0,83206.0,1.13781245]
[1743334846731,0.28107652,83207.0,83206.0,1.13881245]
[1743334848337,0.28107652,83207.0,83206.0,1.13981245]
[1743334848686,0.28107652,83207.0,83206.0,1.13881245]
[1743334848886,0.28107652,83207.0,83206.0,1.13981245]
[1743334850678,0.28107652,83207.0,83206.0,1.00437245]
[1743334850989,0.58107652,83207.0,83206.0,1.00437245]
[1743334851376,0.58107652,83207.0,83206.0,1.00337245]
[1743334851945,0.58107652,83207.0,83206.0,1.00437245]
[1743334853282,0.58141372,83207.0,83206.0,1.00437245]
[1743334854275,0.58141372,83207.0,83206.0,0.59371602]
[1743334854453,0.65711372,83207.0,83206.0,0.59371602]
[1743334856339,0.72771355,83207.0,83206.0,0.59371602]
[1743334856751,0.65711372,83207.0,83206.0,0.02131602]
[1743334857157,0.65711372,83207.0,83206.0,0.002]
[1743334857774,0.65711372,83207.0,83206.0,0.001]
[1743334858112,0.4222,83206.0,83205.0,0.0001686]
[1743334859435,0.70327,83206.0,83205.0,0.0001686]
[1743334859653,0.77366918,83206.0,83205.0,0.0001686]
[1743334865196,0.77848918,83206.0,83205.0,0.0001686]
[1743334865759,0.70809,83206.0,83205.0,0.0001686]
[1743334866656,0.75000971,83206.0,83205.0,0.0001686]
[1743334867246,0.76455056,83206.0,83205.0,0.0001686]
[1743334868664,0.90003056,83206.0,83205.0,0.0001686]
[1743334871032,0.94074443,83206.0,83205.0,0.0001686]
[1743334871148,1.049058,83206.0,83205.0,0.0001686]
[1743334874261,0.76455056,83206.0,83205.0,0.0001686]
[1743334874464,0.70809,83206.0,83205.0,0.0001686]
[1743334875570,0.58589,83206.0,83205.0,0.0001686]
[1743334878926,0.28589,83206.0,83205.0,0.0001686]
[1743334881031,0.58589,83206.0,83205.0,0.0001686]
[1743334883210,0.6531428,83206.0,83205.0,0.0001686]
[1743334883997,0.58589,83206.0,83205.0,0.0001686]
[1743334902264,0.5862272,83206.0,83205.0,0.0001686]
[1743334903827,0.5932272,83206.0,83205.0,0.0001686]
[1743334906471,0.5902272,83206.0,83205.0,0.0001686]
[1743334906634,0.5862272,83206.0,83205.0,0.0001686]
[1743334906832,0.5932272,83206.0,83205.0,0.0001686]
[1743334907035,0.5902272,83206.0,83205.0,0.0001686]
[1743334907462,0.5892272,83206.0,83205.0,0.0001686]
[1743334908407,0.5922272,83206.0,83205.0,0.0001686]
[1743334912440,0.2922272,83206.0,83205.0,0.0001686]
[1743334912665,0.5874072,83206.0,83205.0,0.0001686]
[1743334913111,0.5874072,83206.0,83205.0,0.1318686]
[1743334913446,0.5874072,83206.0,83205.0,0.28721851]
[1743334913881,0.5844072,83206.0,83205.0,0.28721851]
[1743334914082,0.5874072,83206.0,83205.0,0.28721851]
[1743334914290,0.5844072,83206.0,83205.0,0.28721851]
[1743334915552,0.5874072,83206.0,83205.0,0.28721851]
[1743334915951,0.5844072,83206.0,83205.0,0.28721851]
[1743334916239,0.5864072,83206.0,83205.0,0.28721851]
[1743334917094,0.5834072,83206.0,83205.0,0.28721851]
[1743334917559,0.5864072,83206.0,83205.0,0.28721851]
[1743334917918,0.5834072,83206.0,83205.0,0.28721851]
[1743334918684,0.5814072,83206.0,83205.0,0.28721851]
[1743334919017,0.5834072,83206.0,83205.0,0.28721851]
[1743334919418,0.5854072,83206.0,83205.0,0.28721851]
[1743334919838,0.5834072,83206.0,83205.0,0.28721851]
[1743334920038,0.5854072,83206.0,83205.0,0.28721851]
[1743334923500,0.5834072,83206.0,83205.0,0.28721851]
[1743334923666,0.5844072,83206.0,83205.0,0.28721851]
[1743334923932,0.5834072,83206.0,83205.0,0.28721851]
[1743334924127,0.5814072,83206.0,83205.0,0.28721851]
[1743334924442,0.5824072,83206.0,83205.0,0.28721851]
[1743334924729,0.5844072,83206.0,83205.0,0.28721851]
[1743334925148,0.5824072,83206.0,83205.0,0.28721851]
[1743334925508,0.5834072,83206.0,83205.0,0.28721851]
[1743334929330,0.2834072,83206.0,83205.0,0.69787494]
[1743334930484,0.2834072,83206.0,83205.0,0.76766243]
[1743334930706,0.2834072,83206.0,83205.0,0.69787494]
[1743334931538,0.2824072,83206.0,83205.0,0.69787494]
[1743334931776,0.2834072,83206.0,83205.0,0.69787494]
[1743334932960,0.2824072,83206.0,83205.0,0.81815977]
[1743334933299,0.2814072,83206.0,83205.0,0.83270062]
[1743334933430,0.2824072,83206.0,83205.0,0.91647068]
[1743334933637,0.2814072,83206.0,83205.0,0.91647068]
[1743334934000,0.2814072,83206.0,83205.0,0.91747068]
[1743334934403,0.0003372,83206.0,83205.0,0.91647068]
[1743334934603,0.0013372,83206.0,83205.0,0.91747068]
[1743334934964,0.0003372,83206.0,83205.0,0.91647068]
[1743334935164,0.0003372,83206.0,83205.0,0.91847068]
[1743334936385,0.0003372,83206.0,83205.0,0.92047068]
[1743334937679,0.0003372,83206.0,83205.0,0.91847068]
[1743334937879,0.0003372,83206.0,83205.0,0.91647068]
[1743334938088,0.0003372,83206.0,83205.0,0.92047068]
[1743334938295,0.0003372,83206.0,83205.0,0.92447068]
[1743334939330,0.0003372,83206.0,83205.0,0.92047068]
[1743334940093,0.0003372,83206.0,83205.0,0.92347068]
[1743334940317,0.0003372,83206.0,83205.0,0.91947068]
[1743334940517,0.0003372,83206.0,83205.0,0.91647068]
[1743334940668,0.0003372,83206.0,83205.0,0.92347068]
[1743334941222,0.0003372,83206.0,83205.0,0.91647068]
[1743334941372,0.0003372,83206.0,83205.0,0.92047068]
[1743334941572,0.0003372,83206.0,83205.0,0.92447068]
[1743334941782,0.0003372,83206.0,83205.0,0.92047068]
[1743334943084,0.0003372,83206.0,83205.0,0.92447068]
[1743334943492,0.0003372,83206.0,83205.0,0.92047068]
[1743334943709,0.0003372,83206.0,83205.0,0.78903068]
[1743334943868,0.0003372,83206.0,83205.0,0.92443068]
[1743334944723,0.0003372,83206.0,83205.0,0.92043068]
[1743334944925,0.0003372,83206.0,83205.0,0.91643068]
[1743334945122,0.0003372,83206.0,83205.0,0.92043068]
[1743334946347,0.0003372,83206.0,83205.0,0.92443068]
[1743334946503,0.0003372,83206.0,83205.0,0.91643068]
[1743334946923,0.0003372,83206.0,83205.0,0.92643068]
[1743334947469,0.0003372,83206.0,83205.0,0.92143068]
[1743334947682,0.0003372,83206.0,83205.0,0.92643068]
[1743334949138,0.01454085,83259.0,83206.0,0.08964085]
[1743334949329,0.00047221,83242.0,83208.0,0.08964085]
[1743334949550,0.01244737,83242.0,83211.0,0.0466]
[1743334949759,0.01244737,83242.0,83213.0,0.0751]
[1743334950131,0.01244737,83242.0,83214.0,0.5921801]
[1743334950347,0.5,83228.0,83214.0,0.5921801]
[1743334950547,0.3,83227.0,83215.0,0.11245365]
[1743334950752,0.3,83227.0,83217.0,0.0751]
[1743334950954,0.3,83227.0,83218.0,0.01983796]
[1743334951150,0.3,83227.0,83219.0,0.1354]
[1743334951526,0.3,83227.0,83220.0,0.0222299]
[1743334951707,0.3,83227.0,83221.0,0.02445579]
[1743334951942,0.01544737,83242.0,83222.0,0.1217]
[1743334952113,0.5,83223.0,83222.0,0.14151583]
[1743334952315,0.5,83223.0,83222.0,0.55217226]
[1743334953279,0.5,83223.0,83222.0,0.55317226]
[1743334953476,0.5,83223.0,83222.0,0.55217226]
[1743334953925,0.5,83223.0,83222.0,0.55717226]
[1743334956512,0.5,83223.0,83222.0,0.62733608]
[1743334958844,0.5,83223.0,83222.0,0.55717226]
[1743334964539,0.5,83223.0,83222.0,1.12945226]
[1743334964742,0.5,83223.0,83222.0,1.00775226]
[1743334964971,0.5,83223.0,83222.0,1.14311226]
[1743334969596,0.25411157,83223.0,83222.0,1.14311226]
[1743334974619,0.25411157,83223.0,83222.0,1.14344926]
[1743334979029,0.26626143,83223.0,83222.0,0.57116926]
[1743334980781,0.25411157,83223.0,83222.0,0.57116926]
[1743334982318,0.01200518,83228.0,83222.0,0.57116926]
[1743334982600,0.0496,83237.0,83222.0,0.57116926]
[1743334982733,0.0496,83237.0,83223.0,0.05711693]
[1743334982937,0.0496,83237.0,83224.0,0.01980476]
[1743334983225,0.3,83238.0,83224.0,0.01980476]
[1743334983421,0.01183843,83237.0,83224.0,0.01980476]
[1743334983726,0.0768,83243.0,83224.0,0.01980476]
[1743334984573,0.3,83232.0,83224.0,0.01980476]
[1743334985813,0.01214454,83237.0,83222.0,0.54635343]
[1743334986017,0.00247221,83242.0,83225.0,0.01979923]
[1743334986218,0.00247221,83242.0,83223.0,0.01981029]
[1743334986456,0.00247221,83242.0,83222.0,0.54635343]
[1743334986615,0.5,83228.0,83222.0,0.54635343]
[1743334986791,0.5,83228.0,83223.0,0.01981029]
[1743334987190,0.5,83228.0,83222.0,0.54635343]
[1743334987646,0.5,83228.0,83223.0,0.01981029]
[1743334988072,0.5,83228.0,83223.0,0.001]
[1743334989230,0.5,83228.0,83223.0,0.002]
[1743334989455,0.5,83228.0,83223.0,0.05683534]
[1743334989883,0.5,83228.0,83224.0,0.01980476]
[1743334990660,0.5,83228.0,83223.0,0.002]
[1743334990844,0.5,83228.0,83223.0,0.001]
[1743334991242,0.5,83228.0,83224.0,0.001]
[1743334991474,0.3,83227.0,83224.0,0.001]
[1743334991677,0.3,83227.0,83222.0,0.000337]
[1743334991887,0.45984017,83226.0,83225.0,0.01979923]
[1743334992093,0.15984017,83226.0,83224.0,0.001]
[1743334992300,0.10583402,83225.0,83224.0,0.001]
[1743334992727,0.10583402,83225.0,83222.0,0.000337]
[1743334992897,0.15984017,83226.0,83222.0,0.000337]
[1743334993104,0.11841971,83226.0,83223.0,0.01981029]
[1743334993303,0.3,83224.0,83223.0,0.01981029]
[1743334993524,0.3,83224.0,83222.0,0.000337]
[1743334993920,0.3,83224.0,83223.0,0.01981029]
[1743334994331,0.3,83224.0,83222.0,0.000337]
[1743334994789,0.5,83224.0,83223.0,0.01981029]
[1743334994947,0.3,83223.0,83222.0,0.000337]
[1743334995127,0.3,83223.0,83222.0,0.02015283]
[1743334996281,0.0765,83226.0,83222.0,0.000337]
[1743334996584,0.8,83223.0,83222.0,0.000337]
[1743334998091,0.8001686,83223.0,83222.0,0.000337]
[1743335004019,0.84158906,83223.0,83222.0,0.000337]
[1743335006974,0.84358906,83223.0,83222.0,0.000337]
[1743335007393,0.84158906,83223.0,83222.0,0.000337]
[1743335007601,0.93478988,83223.0,83222.0,0.000337]
[1743335007797,0.93678988,83223.0,83222.0,0.000337]
[1743335009054,0.89536942,83223.0,83222.0,0.000337]
[1743335012910,0.8021686,83223.0,83222.0,0.000337]
[1743335014541,0.5021686,83223.0,83222.0,0.082737]
[1743335014754,0.8021686,83223.0,83222.0,0.131337]
[1743335015114,0.5021686,83223.0,83222.0,0.15115283]
[1743335015310,0.8001686,83223.0,83222.0,0.15115283]
[1743335015513,0.5001686,83223.0,83222.0,0.17980411]
[1743335015723,0.8001686,83223.0,83222.0,0.17980411]
[1743335015917,0.5001686,83223.0,83222.0,0.15115283]
[1743335016451,0.8001686,83223.0,83222.0,0.15115283]
[1743335016841,0.8001686,83223.0,83222.0,0.131337]
[1743335017446,0.8021686,83223.0,83222.0,0.131337]
[1743335017855,0.8001686,83223.0,83222.0,0.131337]
[1743335018249,0.8021686,83223.0,83222.0,0.131337]
[1743335019075,0.8021686,83223.0,83222.0,0.54199343]
[1743335019487,0.8021686,83223.0,83222.0,0.56180926]
[1743335019877,0.8001686,83223.0,83222.0,0.56180926]
[1743335020080,0.8021686,83223.0,83222.0,0.56180926]
[1743335020280,0.8031686,83223.0,83222.0,0.56180926]
[1743335020649,0.8011686,83223.0,83222.0,0.56180926]
[1743335020905,0.8021686,83223.0,83222.0,0.56180926]
[1743335034923,0.5021686,83223.0,83222.0,0.56180926]
[1743335035098,0.5021686,83223.0,83222.0,0.68209409]
[1743335036354,0.5021686,83223.0,83222.0,0.56180926]
[1743335048896,0.5021686,83223.0,83222.0,1.13408926]
[1743335050527,0.5021686,83223.0,83222.0,1.13836926]
[1743335051890,0.2804261,83223.0,83222.0,1.13836926]
[1743335063576,0.2804261,83223.0,83222.0,0.56608926]
[1743335091353,0.2804261,83223.0,83222.0,0.74979819]
[1743335095685,0.2804261,83223.0,83222.0,0.69318926]
[1743335101661,0.2804261,83223.0,83222.0,0.82801494]
[1743335102675,0.0021686,83223.0,83222.0,0.82801494]
[1743335105137,0.0021686,83223.0,83222.0,0.85199533]
[1743335107049,0.0768,83259.0,83224.0,0.0823]
[1743335107253,9.645e-05,83258.0,83226.0,0.0823]
[1743335107400,9.645e-05,83258.0,83226.0,0.12028483]
[1743335107744,0.5,83241.0,83227.0,0.10208816]
[1743335107942,0.5,83241.0,83229.0,0.0823]
[1743335108130,0.5,83241.0,83230.0,0.49840093]
[1743335108335,0.5,83241.0,83231.0,0.0823]
[1743335108538,0.5,83241.0,83232.0,0.0197605]
[1743335109046,0.502,83241.0,83232.0,0.0197605]
[1743335109450,0.502,83241.0,83234.0,0.0755]
[1743335109680,0.502,83241.0,83233.0,0.45825905]
[1743335109681,0.5,83241.0,83236.0,0.0755]
[1743335109886,0.5,83241.0,83237.0,0.1352]
[1743335110088,0.5,83241.0,83237.0,0.15493284]
[1743335110298,0.5,83241.0,83238.0,0.0755]
[1743335110718,0.5,83241.0,83239.0,0.01972178]
[1743335110921,0.5,83241.0,83240.0,0.11798843]
[1743335111124,0.5,83241.0,83240.0,0.16318843]
[1743335111331,0.5,83241.0,83240.0,0.75510468]
[1743335111820,0.5,83241.0,83240.0,0.88993036]
[1743335112227,9.645e-05,83258.0,83241.0,0.01454085]
[1743335112530,9.645e-05,83258.0,83243.0,0.0755]
[1743335112728,9.645e-05,83258.0,83244.0,0.41305854]
[1743335112891,9.645e-05,83258.0,83245.0,0.0755]
[1743335113289,9.645e-05,83258.0,83246.0,0.01968306]
[1743335113494,9.645e-05,83258.0,83253.0,0.02450349]
[1743335114056,9.645e-05,83258.0,83254.0,0.01963883]
[1743335114269,0.04151691,83258.0,83254.0,0.01963883]
[1743335114471,0.00109645,83258.0,83247.0,0.13516]
[1743335114629,0.5,83256.0,83247.0,0.13516]
[1743335114956,0.5,83256.0,83248.0,0.019672]
[1743335115870,0.5,83256.0,83249.0,0.41065643]
[1743335116275,0.5,83256.0,83250.0,0.01966095]
[1743335117232,0.501,83256.0,83250.0,0.01966095]
[1743335117637,0.5,83256.0,83250.0,0.01966095]
[1743335118233,0.501,83256.0,83250.0,0.08375869]
[1743335118451,0.501,83256.0,83250.0,0.01966095]
[1743335118874,0.3,83255.0,83250.0,0.01966095]
[1743335119267,0.3,83255.0,83249.0,0.41065643]
[1743335119476,0.3,83255.0,83251.0,0.01965542]
[1743335119655,0.3,83255.0,83250.0,0.01966095]
[1743335119858,0.3,83255.0,83252.0,0.01964989]
[1743335120082,0.001,83256.0,83251.0,0.01965542]
[1743335120261,0.00026505,83258.0,83253.0,0.01964436]
[1743335120501,0.00026505,83258.0,83249.0,0.41065643]
[1743335120502,0.00026505,83258.0,83252.0,0.01964989]
[1743335120703,0.001,83255.0,83254.0,0.01963883]
[1743335120905,0.001,83255.0,83253.0,0.01964436]
[1743335121117,0.00026505,83258.0,83254.0,0.01963883]
[1743335121614,0.00026505,83258.0,83249.0,0.41065643]
[1743335121615,0.5,83254.0,83249.0,0.41065643]
[1743335124748,0.501,83254.0,83249.0,0.41065643]
[1743335125173,0.3,83253.0,83249.0,0.41065643]
[1743335126146,0.5,83251.0,83249.0,0.41065643]
[1743335127585,0.501,83251.0,83249.0,0.41065643]
[1743335133091,0.501,83251.0,83250.0,0.13512]
[1743335133315,0.501,83251.0,83250.0,0.15478095]
[1743335133927,0.5,83251.0,83250.0,0.15478095]
[1743335134860,0.501,83251.0,83250.0,0.15478095]
[1743335139759,0.501,83251.0,83250.0,0.13512]
[1743335142101,0.5011686,83251.0,83250.0,0.13512]
[1743335142306,0.5011686,83251.0,83249.0,0.13512]
[1743335143302,0.5001686,83251.0,83249.0,0.13512]
[1743335143703,0.5011686,83251.0,83249.0,0.13512]
[1743335147010,0.3,83250.0,83247.0,0.13512]
[1743335147985,0.0011686,83251.0,83247.0,0.13512]
[1743335148193,0.3,83248.0,83247.0,0.13512]
[1743335149560,0.001,83250.0,83247.0,0.13512]
[1743335149779,0.001,83250.0,83247.0,0.15479753]
[1743335149981,0.8,83248.0,83247.0,0.15479753]
[1743335150386,0.801,83248.0,83247.0,0.15479753]
[1743335152274,0.88111686,83248.0,83247.0,0.01967753]
[1743335152538,0.8843408,83248.0,83247.0,0.01967753]
[1743335152742,0.3,83247.0,83241.0,0.0003372]
[1743335153076,0.30893665,83247.0,83242.0,0.01970519]
[1743335153281,0.09735461,83246.0,83242.0,0.01970519]
[1743335153686,0.00893665,83247.0,83242.0,0.01970519]
[1743335153919,0.0833408,83248.0,83242.0,0.01970519]
[1743335154077,0.3,83244.0,83242.0,0.01970519]
[1743335155138,0.4306,83243.0,83242.0,0.01970519]
[1743335155369,0.47252034,83243.0,83242.0,0.01970519]
[1743335155663,0.3,83242.0,83241.0,0.0003372]
[1743335157266,0.8,83242.0,83241.0,0.0003372]
[1743335157422,0.801,83242.0,83241.0,0.0003372]
[1743335157942,0.802,83242.0,83241.0,0.0003372]
[1743335160194,0.84392034,83242.0,83241.0,0.0003372]
[1743335160395,1.08187749,83242.0,83241.0,0.0003372]
[1743335161098,1.08087749,83242.0,83241.0,0.0003372]
[1743335161505,1.08287749,83242.0,83241.0,0.0003372]
[1743335161809,1.08087749,83242.0,83241.0,0.0003372]
[1743335162016,1.07987749,83242.0,83241.0,0.0003372]
[1743335162224,1.08187749,83242.0,83241.0,0.0003372]
[1743335162380,1.08487749,83242.0,83241.0,0.0003372]
[1743335162768,1.08187749,83242.0,83241.0,0.0003372]
[1743335163194,1.08487749,83242.0,83241.0,0.0003372]
[1743335163527,1.08287749,83242.0,83241.0,0.0003372]
[1743335163751,1.08487749,83242.0,83241.0,0.0003372]
[1743335163954,1.08187749,83242.0,83241.0,0.0003372]
[1743335164231,1.08487749,83242.0,83241.0,0.0003372]
[1743335164391,1.08687749,83242.0,83241.0,0.0003372]
[1743335165814,1.08704609,83242.0,83241.0,0.0003372]
[1743335166051,0.8071686,83242.0,83241.0,0.0003372]
[1743335173843,0.5071686,83242.0,83241.0,0.0003372]
[1743335174039,0.5071686,83242.0,83241.0,0.02006793]
[1743335174442,0.8071686,83242.0,83241.0,0.02006793]
[1743335174718,0.8071686,83242.0,83241.0,0.0003372]
[1743335175121,0.8071686,83242.0,83241.0,0.0781372]
[1743335177137,0.8031686,83242.0,83241.0,0.0781372]
[1743335177294,0.8031686,83242.0,83241.0,0.0003372]
[1743335177507,0.88248546,83242.0,83241.0,0.0003372]
[1743335177671,0.8051686,83242.0,83241.0,0.0003372]
[1743335178228,0.8021686,83242.0,83241.0,0.0003372]
[1743335178833,0.8041686,83242.0,83241.0,0.0003372]
[1743335179180,0.8001686,83242.0,83241.0,0.0003372]
[1743335179589,0.8021686,83242.0,83241.0,0.0003372]
[1743335180101,0.8041686,83242.0,83241.0,0.0003372]
[1743335180303,0.88438546,83242.0,83241.0,0.0003372]
[1743335180526,0.88638546,83242.0,83241.0,0.0003372]
[1743335181212,0.8061686,83242.0,83241.0,0.0003372]
[1743335183754,0.8892686,83242.0,83241.0,0.0003372]
[1743335184156,1.0198094,83242.0,83241.0,0.0003372]
[1743335185007,0.97838894,83242.0,83241.0,0.0003372]
[1743335185264,0.8061686,83242.0,83241.0,0.0003372]
[1743335187583,0.88924397,83242.0,83241.0,0.0003372]
[1743335192306,0.93116431,83242.0,83241.0,0.0003372]
[1743335194480,0.97258477,83242.0,83241.0,0.0003372]
[1743335196455,0.98712562,83242.0,83241.0,0.0003372]
[1743335204171,0.31454085,83241.0,83222.0,0.000337]
[1743335204447,0.08744493,83240.0,83222.0,0.000337]
[1743335204754,0.34192034,83239.0,83222.0,0.000337]
[1743335205085,0.3833408,83239.0,83222.0,0.000337]
[1743335205232,0.3833408,83239.0,83223.0,0.0198303]
[1743335205647,0.3,83231.0,83223.0,0.0198303]
[1743335205860,0.08,83230.0,83222.0,0.000337]
[1743335206711,0.08010205,83230.0,83222.0,0.000337]
[1743335207136,0.3,83225.0,83222.0,0.000337]
[1743335208084,0.30882188,83225.0,83222.0,0.000337]
[1743335208397,0.00882188,83225.0,83222.0,0.000337]
[1743335208795,0.3,83223.0,83222.0,0.000337]
[1743335209969,0.02470877,83230.0,83222.0,0.000337]
[1743335210229,0.8,83223.0,83222.0,0.000337]
[1743335210348,0.88,83223.0,83222.0,0.000337]
[1743335213026,0.9633408,83223.0,83222.0,0.000337]
[1743335213610,0.97693572,83223.0,83222.0,0.000337]
[1743335213820,0.97793572,83223.0,83222.0,0.000337]
[1743335214220,0.97693572,83223.0,83222.0,0.000337]
[1743335214481,0.97793572,83223.0,83222.0,0.000337]
[1743335215676,0.97993572,83223.0,83222.0,0.000337]
[1743335226510,0.99447657,83223.0,83222.0,0.000337]
[1743335232118,0.81659492,83223.0,83222.0,0.000337]
[1743335234467,0.81659492,83223.0,83222.0,0.081637]
[1743335236097,0.81659492,83223.0,83222.0,0.130637]
[1743335248575,0.81459492,83223.0,83222.0,0.130637]
[1743335249827,0.81359492,83223.0,83222.0,0.130637]
[1743335250190,0.58737404,83223.0,83222.0,0.130637]
[1743335250613,0.58737404,83223.0,83222.0,0.1437007]
[1743335251182,0.58737404,83223.0,83222.0,0.16396473]
[1743335251348,0.58637404,83223.0,83222.0,0.16396473]
[1743335251618,0.58437404,83223.0,83222.0,0.16396473]
[1743335251816,0.58537404,83223.0,83222.0,0.16396473]
[1743335251999,0.58737404,83223.0,83222.0,0.1437007]
[1743335252412,0.58737404,83223.0,83222.0,0.16396473]
[1743335253075,0.58737404,83223.0,83222.0,0.15090103]
[1743335253858,0.58537404,83223.0,83222.0,0.15090103]
[1743335254056,0.58637404,83223.0,83222.0,0.15090103]
[1743335254383,0.58737404,83223.0,83222.0,0.265677]
[1743335254726,0.58737404,83223.0,83222.0,0.28594103]
[1743335256107,0.58637404,83223.0,83222.0,0.28594103]
[1743335256314,0.58637404,83223.0,83222.0,0.265677]
[1743335256622,0.58737404,83223.0,83222.0,0.28594103]
[1743335256843,0.58537404,83223.0,83222.0,0.28594103]
[1743335257043,0.58637404,83223.0,83222.0,0.28594103]
[1743335257190,0.58637404,83223.0,83222.0,0.265677]
[1743335257643,0.58637404,83223.0,83222.0,0.28594103]
[1743335259254,0.58537404,83223.0,83222.0,0.28594103]
[1743335259608,0.58637404,83223.0,83222.0,0.265677]
[1743335259816,0.58437404,83223.0,83222.0,0.265677]
[1743335260010,0.58537404,83223.0,83222.0,0.28594103]
[1743335260212,0.27277912,83223.0,83222.0,0.31453513]
[1743335260418,0.27177912,83223.0,83222.0,0.31453513]
[1743335260831,0.57177912,83223.0,83222.0,0.2942711]
[1743335261040,0.57077912,83223.0,83222.0,0.2942711]
[1743335261238,0.57177912,83223.0,83222.0,0.31453513]
[1743335261432,0.57177912,83223.0,83222.0,0.2942711]
[1743335261662,0.57077912,83223.0,83222.0,0.31453513]
[1743335262681,0.57077912,83223.0,83222.0,0.28594103]
[1743335263095,0.57177912,83223.0,83222.0,0.28594103]
[1743335263301,0.57177912,83223.0,83222.0,0.265677]
[1743335263443,0.57077912,83223.0,83222.0,0.265677]
[1743335264098,0.57177912,83223.0,83222.0,0.265677]
[1743335264242,0.57194772,83223.0,83222.0,0.265677]
[1743335264445,0.57094772,83223.0,83222.0,0.265677]
[1743335264674,0.57094772,83223.0,83222.0,0.266677]
[1743335265207,0.57094772,83223.0,83222.0,0.28694103]
[1743335267923,0.27094772,83223.0,83222.0,0.40722586]
[1743335268127,0.27094772,83223.0,83222.0,0.81788229]
[1743335268477,0.0001686,83223.0,83222.0,0.81788229]
[1743335273563,0.00913115,83261.0,83226.0,0.0775]
[1743335273769,0.00923321,83261.0,83228.0,0.0784]
[1743335273969,0.013364,83256.0,83230.0,0.0784]
[1743335274171,0.013364,83256.0,83233.0,0.0784]
[1743335274397,0.013364,83256.0,83234.0,0.02019764]
[1743335274772,0.3,83244.0,83234.0,0.02019764]
[1743335274980,0.3,83244.0,83234.0,0.41065643]
[1743335275376,0.3,83244.0,83235.0,0.0201921]
[1743335275587,0.3,83244.0,83236.0,0.135]
[1743335275784,0.3,83244.0,83237.0,0.02018104]
[1743335276129,0.02652692,83256.0,83237.0,0.02018104]
[1743335276329,0.5,83240.0,83238.0,0.0784]
[1743335276518,0.3,83239.0,83238.0,0.0784]
[1743335276929,0.3,83239.0,83238.0,0.09857551]
[1743335277614,0.02652692,83256.0,83238.0,0.09857551]
[1743335277817,0.02652692,83256.0,83239.0,0.06683818]
[1743335278193,0.02652692,83256.0,83240.0,0.02016445]
[1743335278595,0.02652692,83256.0,83240.0,0.02015892]
[1743335278796,0.02652692,83256.0,83240.0,0.01715892]
[1743335279414,0.3,83247.0,83240.0,0.01715892]
[1743335280463,0.3,83247.0,83240.0,0.01815892]
[1743335280675,0.02652692,83256.0,83238.0,0.0784]
[1743335280876,0.02652692,83256.0,83239.0,0.06240564]
[1743335281109,0.3,83243.0,83239.0,0.08124229]
[1743335281425,0.3,83243.0,83240.0,0.135]
[1743335281799,0.3,83243.0,83241.0,0.06752558]
[1743335282509,0.03152692,83256.0,83242.0,0.0784]
[1743335282922,0.03152692,83256.0,83243.0,0.01881452]
[1743335283121,0.02652692,83256.0,83243.0,0.01881452]
[1743335283349,0.02652692,83256.0,83244.0,0.0784]
[1743335283552,0.3,83249.0,83244.0,0.0774]
[1743335283754,0.3,83249.0,83245.0,0.06750346]
[1743335283956,0.3,83249.0,83245.0,0.0487]
[1743335284709,0.00010206,83261.0,83245.0,0.0487]
[1743335284944,0.3,83246.0,83245.0,0.06707]
[1743335286373,0.003,83249.0,83246.0,0.0784]
[1743335286851,0.01341238,83256.0,83247.0,0.0187924]
[1743335287149,0.00010206,83261.0,83247.0,0.0157924]
[1743335287291,0.5,83252.0,83247.0,0.0157924]
[1743335287488,0.3,83251.0,83247.0,0.05091092]
[1743335287733,0.003,83249.0,83247.0,0.05091092]
[1743335287995,0.3,83251.0,83248.0,0.01828687]
[1743335288351,0.3,83251.0,83246.0,0.0784]
[1743335288751,0.01361533,83256.0,83247.0,0.0182924]
[1743335288955,0.3,83249.0,83247.0,0.0182924]
[1743335289320,0.3,83249.0,83246.0,0.0784]
[1743335289517,0.3,83249.0,83247.0,0.0182924]
[1743335289926,0.3,83249.0,83246.0,0.0784]
[1743335290126,0.3,83249.0,83248.0,0.01828687]
[1743335290326,0.01361533,83256.0,83247.0,0.0182924]
[1743335290594,0.3,83247.0,83246.0,0.0784]
[1743335291979,0.01361533,83256.0,83246.0,0.0784]
[1743335292162,0.8,83247.0,83246.0,0.0784]
[1743335293395,0.5,83247.0,83246.0,0.1275]
[1743335294404,0.5,83247.0,83246.0,0.14084696]
[1743335294804,0.5,83247.0,83246.0,0.15914489]